[Event "Titled Tuesday Blitz August 22 Early 2023"]
[White "subham777"]
[Black "Kowalysko, Roman"]
[BlackFideId "30918510"]
[WhiteElo "2537"]
[BlackElo "2157"]
[Result "1-0"]
[Round "1"]
[TimeControl "180+1"]
[Date "2023.08.22"]
[WhiteClock "0:00:08"]
[BlackClock "0:00:05"]
[Board "234"]

1. e4 {[%clk 0:02:59]}  c5 {[%clk 0:03:00]} 2. Nf3 {[%clk 0:02:59]}  d6 {[%clk 0:03:00]} 3. d4 {[%clk 0:02:59]}  cxd4 {[%clk 0:03:00]} 4. Qxd4 {[%clk 0:03:00]}  Nc6 {[%clk 0:02:59]} 5. Bb5 {[%clk 0:02:56]}  Bd7 {[%clk 0:02:59]} 6. Bxc6 {[%clk 0:02:55]}  Bxc6 {[%clk 0:02:59]} 7. c4 {[%clk 0:02:55]}  Nf6 {[%clk 0:02:56]} 8. Nc3 {[%clk 0:02:54]}  g6 {[%clk 0:02:43]} 9. Bg5 {[%clk 0:02:53]}  Bg7 {[%clk 0:02:42]} 10. O-O {[%clk 0:02:52]}  O-O {[%clk 0:02:42]} 11. Qd3 {[%clk 0:02:52]}  Rc8 {[%clk 0:02:30]} 12. Rfd1 {[%clk 0:02:47]}  Qc7 {[%clk 0:02:19]} 13. Rac1 {[%clk 0:02:45]}  a6 {[%clk 0:02:15]} 14. Nd4 {[%clk 0:02:40]}  Rfe8 {[%clk 0:02:07]} 15. b3 {[%clk 0:02:27]}  Nd7 {[%clk 0:02:05]} 16. Nd5 {[%clk 0:02:17]}  Bxd5 {[%clk 0:02:00]} 17. exd5 {[%clk 0:02:18]}  Ne5 {[%clk 0:01:59]} 18. Qe2 {[%clk 0:02:14]}  Qc5 {[%clk 0:01:55]} 19. Be3 {[%clk 0:02:02]}  Qc7 {[%clk 0:01:54]} 20. f4 {[%clk 0:01:57]}  Nd7 {[%clk 0:01:53]} 21. h4 {[%clk 0:01:53]}  Nf6 {[%clk 0:01:53]} 22. Bf2 {[%clk 0:01:42]}  h5 {[%clk 0:01:51]} 23. f5 {[%clk 0:01:31]}  Ng4 {[%clk 0:01:50]} 24. fxg6 {[%clk 0:01:23]}  fxg6 {[%clk 0:01:50]} 25. Ne6 {[%clk 0:01:21]}  Qd7 {[%clk 0:01:47]} 26. Bd4 {[%clk 0:00:59]}  Ne5 {[%clk 0:01:42]} 27. Nxg7 {[%clk 0:00:48]}  Kxg7 {[%clk 0:01:43]} 28. Bxe5+ {[%clk 0:00:44]}  dxe5 {[%clk 0:01:43]} 29. Qxe5+ {[%clk 0:00:44]}  Kh7 {[%clk 0:01:44]} 30. Rf1 {[%clk 0:00:41]}  Rf8 {[%clk 0:01:43]} 31. Rce1 {[%clk 0:00:40]}  e6 {[%clk 0:00:53]} 32. Rxf8 {[%clk 0:00:29]}  Rxf8 {[%clk 0:00:52]} 33. dxe6 {[%clk 0:00:28]}  Qd2 {[%clk 0:00:50]} 34. Qe2 {[%clk 0:00:10]}  Qd4+ {[%clk 0:00:46]} 35. Qe3 {[%clk 0:00:09]}  Qxh4 {[%clk 0:00:41]} 36. e7 {[%clk 0:00:09]}  Re8 {[%clk 0:00:42]} 37. Qe6 {[%clk 0:00:08]}  Qxc4 {[%clk 0:00:38]} 38. bxc4 {[%clk 0:00:07]}  Rg8 {[%clk 0:00:05]} 39. Qxg8+ {[%clk 0:00:06]}  Kxg8 {[%clk 0:00:05]} 40. e8=Q+ {[%clk 0:00:07]}  Kg7 {[%clk 0:00:06]} 41. Re6 {[%clk 0:00:07]}  g5 {[%clk 0:00:04]} 42. Qg6+ {[%clk 0:00:07]}  Kf8 {[%clk 0:00:05]} 43. Re8# {[%clk 0:00:08]} 1-0


[Site "https://www.chess.com"]

[Event "Titled Tuesday Blitz August 22 Early 2023"]
[White "Dilmukhametov, Artur"]
[Black "Lehtosaari, Mauri"]
[WhiteFideId "24179922"]
[BlackFideId "501999"]
[WhiteElo "2151"]
[BlackElo "2536"]
[Result "1-0"]
[Round "1"]
[TimeControl "180+1"]
[Date "2023.08.22"]
[WhiteClock "0:01:20"]
[BlackClock "0:00:56"]
[Board "235"]

1. e4 {[%clk 0:02:53]}  d5 {[%clk 0:02:58]} 2. exd5 {[%clk 0:02:52]}  Qxd5 {[%clk 0:02:59]} 3. d4 {[%clk 0:02:49]}  e5 {[%clk 0:02:53]} 4. Nf3 {[%clk 0:02:41]}  Bg4 {[%clk 0:02:51]} 5. Be2 {[%clk 0:02:37]}  exd4 {[%clk 0:02:46]} 6. O-O {[%clk 0:02:29]}  Nc6 {[%clk 0:02:42]} 7. Nxd4 {[%clk 0:02:29]}  Qxd4 {[%clk 0:02:18]} 8. Bxg4 {[%clk 0:02:26]}  Qxd1 {[%clk 0:02:18]} 9. Rxd1 {[%clk 0:02:22]}  Bd6 {[%clk 0:02:18]} 10. Nc3 {[%clk 0:02:17]}  a6 {[%clk 0:02:05]} 11. Ne4 {[%clk 0:02:15]}  Rd8 {[%clk 0:01:57]} 12. Nxd6+ {[%clk 0:02:15]}  cxd6 {[%clk 0:01:52]} 13. Bf4 {[%clk 0:02:11]}  Ne5 {[%clk 0:01:51]} 14. Re1 {[%clk 0:01:56]}  f6 {[%clk 0:01:49]} 15. Be6 {[%clk 0:01:50]}  Ne7 {[%clk 0:01:40]} 16. Bg3 {[%clk 0:01:49]}  g5 {[%clk 0:01:32]} 17. Rad1 {[%clk 0:01:47]}  N7c6 {[%clk 0:01:27]} 18. Bd5 {[%clk 0:01:43]}  Ke7 {[%clk 0:01:21]} 19. Re3 {[%clk 0:01:26]}  Rhe8 {[%clk 0:01:17]} 20. Rb3 {[%clk 0:01:26]}  Rd7 {[%clk 0:01:15]} 21. Re1 {[%clk 0:01:20]}  Kf8 {[%clk 0:01:10]} 22. f4 {[%clk 0:01:18]}  gxf4 {[%clk 0:01:02]} 23. Bxf4 {[%clk 0:01:19]}  Ng6 {[%clk 0:01:03]} 24. Bh6+ {[%clk 0:01:19]}  Rg7 {[%clk 0:00:57]} 25. Bxg7+ {[%clk 0:01:19]}  Kxg7 {[%clk 0:00:56]} 26. Rxe8 {[%clk 0:01:20]} 1-0


[Site "https://www.chess.com"]

[Event "Titled Tuesday Blitz August 22 Early 2023"]
[White "Nazaretyan, Tigran"]
[Black "Baruch, Liam"]
[WhiteFideId "24162345"]
[BlackFideId "14322064"]
[WhiteElo "2535"]
[BlackElo "2144"]
[Result "1-0"]
[Round "1"]
[TimeControl "180+1"]
[Date "2023.08.22"]
[WhiteClock "0:00:57"]
[BlackClock "0:00:12"]
[Board "236"]

1. d4 {[%clk 0:03:00]}  d5 {[%clk 0:03:00]} 2. c4 {[%clk 0:02:59]}  e6 {[%clk 0:03:01]} 3. Nf3 {[%clk 0:02:59]}  Nf6 {[%clk 0:03:01]} 4. Nc3 {[%clk 0:02:59]}  Be7 {[%clk 0:03:02]} 5. Bf4 {[%clk 0:02:58]}  O-O {[%clk 0:03:02]} 6. e3 {[%clk 0:02:58]}  a6 {[%clk 0:03:02]} 7. c5 {[%clk 0:02:56]}  b6 {[%clk 0:02:56]} 8. b4 {[%clk 0:02:50]}  a5 {[%clk 0:02:55]} 9. a3 {[%clk 0:02:50]}  Na6 {[%clk 0:02:53]} 10. b5 {[%clk 0:02:45]}  Nb8 {[%clk 0:02:41]} 11. c6 {[%clk 0:02:41]}  Nh5 {[%clk 0:02:38]} 12. Bd3 {[%clk 0:02:36]}  Nxf4 {[%clk 0:02:38]} 13. exf4 {[%clk 0:02:36]}  Bd6 {[%clk 0:02:38]} 14. g3 {[%clk 0:02:32]}  Qe7 {[%clk 0:02:34]} 15. a4 {[%clk 0:02:26]}  Bb4 {[%clk 0:02:31]} 16. Qc2 {[%clk 0:02:26]}  h6 {[%clk 0:02:30]} 17. O-O {[%clk 0:02:22]}  f5 {[%clk 0:02:24]} 18. Rfe1 {[%clk 0:02:18]}  Bxc3 {[%clk 0:02:00]} 19. Qxc3 {[%clk 0:02:17]}  Qb4 {[%clk 0:02:00]} 20. Qc2 {[%clk 0:02:07]}  Rf6 {[%clk 0:01:46]} 21. h4 {[%clk 0:01:55]}  Na6 {[%clk 0:01:29]} 22. bxa6 {[%clk 0:01:54]}  Bxa6 {[%clk 0:01:29]} 23. Bxa6 {[%clk 0:01:52]}  Rxa6 {[%clk 0:01:30]} 24. Re3 {[%clk 0:01:35]}  Ra8 {[%clk 0:01:26]} 25. Qd3 {[%clk 0:01:29]}  Qd6 {[%clk 0:01:18]} 26. Ne5 {[%clk 0:01:28]}  Re8 {[%clk 0:01:10]} 27. Rae1 {[%clk 0:01:27]}  Kh7 {[%clk 0:01:08]} 28. h5 {[%clk 0:01:27]}  Kg8 {[%clk 0:01:08]} 29. Qb5 {[%clk 0:01:25]}  Kh7 {[%clk 0:01:02]} 30. Qe2 {[%clk 0:01:19]}  Kg8 {[%clk 0:00:57]} 31. Nd7 {[%clk 0:01:18]}  Rf7 {[%clk 0:00:55]} 32. Rxe6 {[%clk 0:01:18]}  Rxe6 {[%clk 0:00:45]} 33. Qxe6 {[%clk 0:01:17]}  Qb4 {[%clk 0:00:41]} 34. Qe8+ {[%clk 0:01:15]}  Kh7 {[%clk 0:00:41]} 35. Re5 {[%clk 0:01:02]}  Qb1+ {[%clk 0:00:12]} 36. Kg2 {[%clk 0:00:59]}  Rf6 {[%clk 0:00:11]} 37. Nxf6+ {[%clk 0:00:57]}  gxf6 {[%clk 0:00:12]} 38. Re7# {[%clk 0:00:57]} 1-0


[Site "https://www.chess.com"]

[Event "Titled Tuesday Blitz August 22 Early 2023"]
[White "Flis, Pawel"]
[Black "Vovk, Orest"]
[WhiteFideId "1112864"]
[BlackFideId "14113490"]
[WhiteElo "2123"]
[BlackElo "2534"]
[Result "0-1"]
[Round "1"]
[TimeControl "180+1"]
[Date "2023.08.22"]
[WhiteClock "0:00:15"]
[BlackClock "0:00:12"]
[Board "239"]

1. e4 {[%clk 0:02:59]}  g5 {[%clk 0:02:59]} 2. d4 {[%clk 0:02:57]}  g4 {[%clk 0:02:58]} 3. Nc3 {[%clk 0:02:55]}  Bg7 {[%clk 0:02:58]} 4. Be2 {[%clk 0:02:55]}  h5 {[%clk 0:02:57]} 5. h3 {[%clk 0:02:54]}  c5 {[%clk 0:02:57]} 6. dxc5 {[%clk 0:02:45]}  Bxc3+ {[%clk 0:02:55]} 7. bxc3 {[%clk 0:02:44]}  Qa5 {[%clk 0:02:52]} 8. Qd4 {[%clk 0:02:40]}  Nf6 {[%clk 0:02:50]} 9. hxg4 {[%clk 0:02:30]}  Nc6 {[%clk 0:02:47]} 10. Qd3 {[%clk 0:02:27]}  Nxe4 {[%clk 0:02:42]} 11. Bd2 {[%clk 0:02:18]}  Nxd2 {[%clk 0:02:30]} 12. Qxd2 {[%clk 0:02:03]}  Qxc5 {[%clk 0:02:31]} 13. gxh5 {[%clk 0:01:59]}  d6 {[%clk 0:02:29]} 14. h6 {[%clk 0:01:42]}  Bf5 {[%clk 0:02:24]} 15. Bd3 {[%clk 0:01:33]}  O-O-O {[%clk 0:02:22]} 16. Nf3 {[%clk 0:01:25]}  Bxd3 {[%clk 0:02:07]} 17. cxd3 {[%clk 0:01:20]}  Ne5 {[%clk 0:02:07]} 18. Nd4 {[%clk 0:00:48]}  Qd5 {[%clk 0:01:57]} 19. O-O-O {[%clk 0:00:35]}  Qxg2 {[%clk 0:01:53]} 20. Nb5 {[%clk 0:00:34]}  a6 {[%clk 0:01:48]} 21. Nd4 {[%clk 0:00:26]}  Rdg8 {[%clk 0:01:42]} 22. Rdg1 {[%clk 0:00:25]}  Qxg1+ {[%clk 0:01:40]} 23. Rxg1 {[%clk 0:00:25]}  Rxg1+ {[%clk 0:01:40]} 24. Kc2 {[%clk 0:00:21]}  Rh1 {[%clk 0:01:36]} 25. Nf5 {[%clk 0:00:21]}  Kd7 {[%clk 0:01:23]} 26. Qg5 {[%clk 0:00:20]}  Ng6 {[%clk 0:01:10]} 27. d4 {[%clk 0:00:16]}  Rh2 {[%clk 0:00:58]} 28. Qg3 {[%clk 0:00:14]}  Rh5 {[%clk 0:00:22]} 29. Qg4 {[%clk 0:00:12]}  Rh2 {[%clk 0:00:10]} 30. Qg3 {[%clk 0:00:12]}  R2xh6 {[%clk 0:00:10]} 31. Nxh6 {[%clk 0:00:11]}  Rxh6 {[%clk 0:00:11]} 32. Qg2 {[%clk 0:00:10]}  Kc7 {[%clk 0:00:09]} 33. a4 {[%clk 0:00:11]}  Rh5 {[%clk 0:00:08]} 34. a5 {[%clk 0:00:11]}  Rxa5 {[%clk 0:00:07]} 35. Qg4 {[%clk 0:00:06]}  Ra2+ {[%clk 0:00:06]} 36. Kd3 {[%clk 0:00:06]}  Rxf2 {[%clk 0:00:06]} 37. Qh5 {[%clk 0:00:06]}  Nf4+ {[%clk 0:00:05]} 38. Ke3 {[%clk 0:00:06]}  Nxh5 {[%clk 0:00:06]} 39. Kxf2 {[%clk 0:00:06]}  a5 {[%clk 0:00:07]} 40. Ke3 {[%clk 0:00:06]}  a4 {[%clk 0:00:08]} 41. Kd3 {[%clk 0:00:06]}  b5 {[%clk 0:00:08]} 42. Kc2 {[%clk 0:00:07]}  d5 {[%clk 0:00:08]} 43. Kb2 {[%clk 0:00:08]}  Kb6 {[%clk 0:00:09]} 44. Ka3 {[%clk 0:00:09]}  Ka5 {[%clk 0:00:09]} 45. Kb2 {[%clk 0:00:07]}  b4 {[%clk 0:00:09]} 46. cxb4+ {[%clk 0:00:07]}  Kxb4 {[%clk 0:00:10]} 47. Ka2 {[%clk 0:00:07]}  Kc4 {[%clk 0:00:10]} 48. Ka3 {[%clk 0:00:08]}  Kxd4 {[%clk 0:00:11]} 49. Kxa4 {[%clk 0:00:09]}  e5 {[%clk 0:00:10]} 50. Kb5 {[%clk 0:00:10]}  f5 {[%clk 0:00:11]} 51. Kc6 {[%clk 0:00:11]}  f4 {[%clk 0:00:11]} 52. Kd6 {[%clk 0:00:11]}  f3 {[%clk 0:00:12]} 53. Ke6 {[%clk 0:00:12]}  f2 {[%clk 0:00:12]} 54. Kf5 {[%clk 0:00:12]}  f1=Q+ {[%clk 0:00:12]} 55. Kg5 {[%clk 0:00:13]}  e4 {[%clk 0:00:12]} 56. Kxh5 {[%clk 0:00:14]}  e3 {[%clk 0:00:12]} 57. Kg6 {[%clk 0:00:15]}  e2 {[%clk 0:00:12]} 58. Kg7 {[%clk 0:00:16]}  e1=Q {[%clk 0:00:12]} 59. Kg8 {[%clk 0:00:15]}  Kc5 {[%clk 0:00:12]} 0-1


[Site "https://www.chess.com"]

[Event "Titled Tuesday Blitz August 22 Early 2023"]
[White "Boraso, Alessio"]
[Black "Floresvillar Gonzalez, Luis Migu"]
[WhiteFideId "848077"]
[BlackFideId "5100542"]
[WhiteElo "2530"]
[BlackElo "2122"]
[Result "1-0"]
[Round "1"]
[TimeControl "180+1"]
[Date "2023.08.22"]
[WhiteClock "0:01:13"]
[BlackClock "0:01:13"]
[Board "240"]

1. e4 {[%clk 0:02:56]}  c6 {[%clk 0:03:00]} 2. d4 {[%clk 0:02:55]}  d5 {[%clk 0:03:00]} 3. Nc3 {[%clk 0:02:53]}  dxe4 {[%clk 0:03:00]} 4. f3 {[%clk 0:02:52]}  e3 {[%clk 0:02:49]} 5. Bxe3 {[%clk 0:02:51]}  Bf5 {[%clk 0:02:49]} 6. Qd2 {[%clk 0:02:46]}  e6 {[%clk 0:02:48]} 7. O-O-O {[%clk 0:02:45]}  Nd7 {[%clk 0:02:48]} 8. h4 {[%clk 0:02:45]}  h6 {[%clk 0:02:46]} 9. g4 {[%clk 0:02:44]}  Bg6 {[%clk 0:02:43]} 10. h5 {[%clk 0:02:43]}  Bh7 {[%clk 0:02:42]} 11. Bd3 {[%clk 0:02:42]}  Bxd3 {[%clk 0:02:41]} 12. Qxd3 {[%clk 0:02:43]}  Be7 {[%clk 0:02:38]} 13. Nge2 {[%clk 0:02:40]}  Ngf6 {[%clk 0:02:34]} 14. Kb1 {[%clk 0:02:38]}  Qa5 {[%clk 0:02:30]} 15. Qd2 {[%clk 0:02:34]}  Qa6 {[%clk 0:02:16]} 16. Nf4 {[%clk 0:02:25]}  O-O-O {[%clk 0:02:13]} 17. Nd3 {[%clk 0:02:22]}  Nd5 {[%clk 0:02:10]} 18. Nxd5 {[%clk 0:02:19]}  exd5 {[%clk 0:02:05]} 19. Bf4 {[%clk 0:02:09]}  Rhe8 {[%clk 0:02:04]} 20. Bg3 {[%clk 0:02:01]}  Nb6 {[%clk 0:02:01]} 21. Rhe1 {[%clk 0:01:49]}  Nc4 {[%clk 0:01:38]} 22. Qf4 {[%clk 0:01:48]}  Bd6 {[%clk 0:01:38]} 23. Qf5+ {[%clk 0:01:43]}  Kb8 {[%clk 0:01:34]} 24. Rxe8 {[%clk 0:01:27]}  Rxe8 {[%clk 0:01:31]} 25. Bxd6+ {[%clk 0:01:20]}  Nxd6 {[%clk 0:01:29]} 26. Qd7 {[%clk 0:01:21]}  Re6 {[%clk 0:01:24]} 27. Qd8+ {[%clk 0:01:13]}  Nc8 {[%clk 0:01:22]} 28. Nc5 {[%clk 0:01:13]}  Qb6 {[%clk 0:01:13]} 29. Nd7+ {[%clk 0:01:13]} 1-0


[Site "https://www.chess.com"]

[Event "Titled Tuesday Blitz August 22 Early 2023"]
[White "Feliz Dotel, Dewar Bienvenido"]
[Black "ATM622"]
[WhiteFideId "6402801"]
[WhiteElo "2121"]
[BlackElo "2529"]
[Result "1-0"]
[Round "1"]
[TimeControl "180+1"]
[Date "2023.08.22"]
[WhiteClock "0:00:03"]
[BlackClock "0:00:03"]
[Board "241"]

1. d4 {[%clk 0:02:58]}  Nf6 {[%clk 0:02:59]} 2. e3 {[%clk 0:02:58]}  e6 {[%clk 0:02:57]} 3. Nf3 {[%clk 0:02:57]}  d5 {[%clk 0:02:57]} 4. Bd3 {[%clk 0:02:57]}  c5 {[%clk 0:02:57]} 5. b3 {[%clk 0:02:57]}  Nc6 {[%clk 0:02:56]} 6. O-O {[%clk 0:02:52]}  Be7 {[%clk 0:02:49]} 7. a3 {[%clk 0:02:52]}  O-O {[%clk 0:02:50]} 8. Bb2 {[%clk 0:02:51]}  Ne4 {[%clk 0:02:49]} 9. c4 {[%clk 0:02:50]}  f5 {[%clk 0:02:36]} 10. cxd5 {[%clk 0:02:37]}  exd5 {[%clk 0:02:36]} 11. dxc5 {[%clk 0:02:37]}  Bxc5 {[%clk 0:02:27]} 12. Nc3 {[%clk 0:02:13]}  Be6 {[%clk 0:02:24]} 13. b4 {[%clk 0:02:10]}  Bd6 {[%clk 0:02:13]} 14. Nb5 {[%clk 0:02:09]}  Bb8 {[%clk 0:02:07]} 15. Nbd4 {[%clk 0:02:04]}  Bd7 {[%clk 0:01:51]} 16. Nxc6 {[%clk 0:01:52]}  bxc6 {[%clk 0:01:28]} 17. Rc1 {[%clk 0:01:40]}  g5 {[%clk 0:01:18]} 18. Ne5 {[%clk 0:00:48]}  Qc7 {[%clk 0:00:48]} 19. Bxe4 {[%clk 0:00:39]}  fxe4 {[%clk 0:00:44]} 20. Qh5 {[%clk 0:00:40]}  Rf5 {[%clk 0:00:34]} 21. Ng4 {[%clk 0:00:31]}  Kf8 {[%clk 0:00:09]} 22. Qxh7 {[%clk 0:00:18]}  Rf7 {[%clk 0:00:08]} 23. Qh6+ {[%clk 0:00:16]}  Ke7 {[%clk 0:00:06]} 24. Qxg5+ {[%clk 0:00:15]}  Kf8 {[%clk 0:00:05]} 25. g3 {[%clk 0:00:11]}  a5 {[%clk 0:00:02]} 26. Qh6+ {[%clk 0:00:10]}  Ke8 {[%clk 0:00:01]} 27. Nf6+ {[%clk 0:00:08]}  Ke7 {[%clk 0:00:02]} 28. Ng8+ {[%clk 0:00:07]}  Ke8 {[%clk 0:00:01]} 29. Qh8 {[%clk 0:00:05]}  Rf8 {[%clk 0:00:01]} 30. Nf6+ {[%clk 0:00:04]}  Ke7 {[%clk 0:00:01]} 31. Qg7+ {[%clk 0:00:04]}  Rf7 {[%clk 0:00:01]} 32. Qg5 {[%clk 0:00:03]}  Qd6 {[%clk 0:00:02]} 33. Nxe4+ {[%clk 0:00:03]}  Ke8 {[%clk 0:00:02]} 34. Nxd6+ {[%clk 0:00:03]}  Bxd6 {[%clk 0:00:03]} 35. Qg8+ {[%clk 0:00:03]}  Rf8 {[%clk 0:00:03]} 36. Qxf8+ {[%clk 0:00:04]}  Bxf8 {[%clk 0:00:03]} 37. e4 {[%clk 0:00:04]}  dxe4 {[%clk 0:00:03]} 38. Rfe1 {[%clk 0:00:04]}  Bf5 {[%clk 0:00:03]} 39. f3 {[%clk 0:00:04]}  Kf7 {[%clk 0:00:02]} 40. fxe4 {[%clk 0:00:04]}  Bh3 {[%clk 0:00:02]} 41. Re2 {[%clk 0:00:04]}  Bg4 {[%clk 0:00:02]} 42. Rf2+ {[%clk 0:00:04]}  Kg8 {[%clk 0:00:02]} 43. Rf4 {[%clk 0:00:03]}  Bh3 {[%clk 0:00:02]} 44. Rh4 {[%clk 0:00:03]}  Be6 {[%clk 0:00:02]} 45. Rf1 {[%clk 0:00:03]}  Be7 {[%clk 0:00:03]} 46. Rh8# {[%clk 0:00:03]} 1-0


[Site "https://www.chess.com"]

[Event "Titled Tuesday Blitz August 22 Early 2023"]
[White "Lima, Kleyton Alcantara"]
[Black "Seifert, Henryk"]
[WhiteFideId "22718397"]
[BlackFideId "1100963"]
[WhiteElo "2527"]
[BlackElo "2113"]
[Result "1-0"]
[Round "1"]
[TimeControl "180+1"]
[Date "2023.08.22"]
[WhiteClock "0:01:14"]
[BlackClock "0:00:00"]
[Board "242"]

1. d4 {[%clk 0:03:00]}  d5 {[%clk 0:02:58]} 2. c4 {[%clk 0:03:01]}  c6 {[%clk 0:02:58]} 3. Nf3 {[%clk 0:03:01]}  e6 {[%clk 0:02:57]} 4. e3 {[%clk 0:02:57]}  Nf6 {[%clk 0:02:56]} 5. b3 {[%clk 0:02:56]}  Nbd7 {[%clk 0:02:55]} 6. Bb2 {[%clk 0:02:54]}  Bd6 {[%clk 0:02:54]} 7. Bd3 {[%clk 0:02:53]}  O-O {[%clk 0:02:53]} 8. O-O {[%clk 0:02:54]}  b6 {[%clk 0:02:51]} 9. Nbd2 {[%clk 0:02:53]}  Bb7 {[%clk 0:02:51]} 10. Qc2 {[%clk 0:02:52]}  h6 {[%clk 0:02:49]} 11. Rac1 {[%clk 0:02:50]}  Rc8 {[%clk 0:02:49]} 12. Rfd1 {[%clk 0:02:50]}  Qe7 {[%clk 0:02:49]} 13. e4 {[%clk 0:02:50]}  dxe4 {[%clk 0:02:39]} 14. Nxe4 {[%clk 0:02:51]}  Nxe4 {[%clk 0:02:36]} 15. Bxe4 {[%clk 0:02:51]}  Nf6 {[%clk 0:02:35]} 16. Bd3 {[%clk 0:02:51]}  Bf4 {[%clk 0:02:28]} 17. Ra1 {[%clk 0:02:46]}  c5 {[%clk 0:02:21]} 18. Qe2 {[%clk 0:02:44]}  Rfd8 {[%clk 0:02:11]} 19. d5 {[%clk 0:02:42]}  Re8 {[%clk 0:01:49]} 20. dxe6 {[%clk 0:02:13]}  Qxe6 {[%clk 0:01:44]} 21. Qxe6 {[%clk 0:02:13]}  fxe6 {[%clk 0:01:35]} 22. Ne5 {[%clk 0:02:12]}  Bxe5 {[%clk 0:00:56]} 23. Bxe5 {[%clk 0:02:13]}  Ng4 {[%clk 0:00:53]} 24. Bc3 {[%clk 0:02:04]}  Rf8 {[%clk 0:00:41]} 25. f3 {[%clk 0:02:04]}  Ne3 {[%clk 0:00:24]} 26. Re1 {[%clk 0:01:57]}  Nf5 {[%clk 0:00:23]} 27. Rxe6 {[%clk 0:01:54]}  Nd4 {[%clk 0:00:21]} 28. Re7 {[%clk 0:01:50]}  Bc6 {[%clk 0:00:17]} 29. Rxa7 {[%clk 0:01:45]}  Rcd8 {[%clk 0:00:16]} 30. Bf1 {[%clk 0:01:36]}  Bxf3 {[%clk 0:00:11]} 31. Bxd4 {[%clk 0:01:31]}  Rxd4 {[%clk 0:00:07]} 32. gxf3 {[%clk 0:01:31]}  Rxf3 {[%clk 0:00:07]} 33. Bg2 {[%clk 0:01:30]}  Re3 {[%clk 0:00:06]} 34. Rf1 {[%clk 0:01:25]}  Re2 {[%clk 0:00:05]} 35. Rf2 {[%clk 0:01:25]}  Re1+ {[%clk 0:00:04]} 36. Bf1 {[%clk 0:01:25]}  Rdd1 {[%clk 0:00:00]} 37. Rff7 {[%clk 0:01:14]} 1-0


[Site "https://www.chess.com"]

[Event "Titled Tuesday Blitz August 22 Early 2023"]
[White "Badelka, Olga"]
[Black "Dahlgren, James Allen"]
[WhiteFideId "13509926"]
[BlackFideId "22256873"]
[WhiteElo "2526"]
[BlackElo "2107"]
[Result "1-0"]
[Round "1"]
[TimeControl "180+1"]
[Date "2023.08.22"]
[WhiteClock "0:02:27"]
[BlackClock "0:02:18"]
[Board "244"]

1. c4 {[%clk 0:02:59]}  e6 {[%clk 0:03:00]} 2. Nc3 {[%clk 0:02:59]}  d5 {[%clk 0:03:00]} 3. d4 {[%clk 0:02:59]}  Nf6 {[%clk 0:03:00]} 4. cxd5 {[%clk 0:02:59]}  exd5 {[%clk 0:03:01]} 5. Bg5 {[%clk 0:02:59]}  Be7 {[%clk 0:03:01]} 6. e3 {[%clk 0:03:00]}  O-O {[%clk 0:03:01]} 7. Bd3 {[%clk 0:03:00]}  h6 {[%clk 0:03:01]} 8. Bh4 {[%clk 0:03:00]}  c6 {[%clk 0:03:01]} 9. Nge2 {[%clk 0:03:00]}  Bg4 {[%clk 0:03:00]} 10. f3 {[%clk 0:02:59]}  Bh5 {[%clk 0:02:59]} 11. O-O {[%clk 0:02:59]}  Nbd7 {[%clk 0:02:59]} 12. Qd2 {[%clk 0:02:59]}  b5 {[%clk 0:02:57]} 13. Bg3 {[%clk 0:02:51]}  Qb6 {[%clk 0:02:52]} 14. Rae1 {[%clk 0:02:48]}  a5 {[%clk 0:02:48]} 15. Nf4 {[%clk 0:02:48]}  a4 {[%clk 0:02:45]} 16. Bc2 {[%clk 0:02:45]}  a3 {[%clk 0:02:44]} 17. b3 {[%clk 0:02:38]}  b4 {[%clk 0:02:43]} 18. Na4 {[%clk 0:02:33]}  Qb5 {[%clk 0:02:32]} 19. e4 {[%clk 0:02:27]}  Rfe8 {[%clk 0:02:18]} 20. e5 {[%clk 0:02:27]} 1-0


[Site "https://www.chess.com"]

[Event "Titled Tuesday Blitz August 22 Early 2023"]
[White "Gyulamiryan-koryun"]
[Black "Kashefi, Amir Hosein"]
[BlackFideId "12557935"]
[WhiteElo "2035"]
[BlackElo "2521"]
[Result "0-1"]
[Round "1"]
[TimeControl "180+1"]
[Date "2023.08.22"]
[WhiteClock "0:00:00"]
[BlackClock "0:00:18"]
[Board "249"]

1. d4 {[%clk 0:03:00]}  d5 {[%clk 0:00:17]} 2. c4 {[%clk 0:03:00]}  c6 {[%clk 0:00:17]} 3. Nf3 {[%clk 0:02:59]}  Nf6 {[%clk 0:00:17]} 4. g3 {[%clk 0:02:59]}  Bf5 {[%clk 0:00:18]} 5. Qb3 {[%clk 0:02:58]}  Qb6 {[%clk 0:00:17]} 6. c5 {[%clk 0:02:49]}  Qxb3 {[%clk 0:00:17]} 7. axb3 {[%clk 0:02:49]}  Nbd7 {[%clk 0:00:18]} 8. b4 {[%clk 0:02:48]}  Bxb1 {[%clk 0:00:17]} 9. Rxb1 {[%clk 0:02:48]}  a6 {[%clk 0:00:18]} 10. Bf4 {[%clk 0:02:46]}  Rc8 {[%clk 0:00:19]} 11. h4 {[%clk 0:02:45]}  e6 {[%clk 0:00:19]} 12. Bg2 {[%clk 0:02:41]}  Be7 {[%clk 0:00:20]} 13. O-O {[%clk 0:02:40]}  Bd8 {[%clk 0:00:21]} 14. Rfe1 {[%clk 0:02:30]}  O-O {[%clk 0:00:20]} 15. Bd6 {[%clk 0:02:29]}  Re8 {[%clk 0:00:20]} 16. Ne5 {[%clk 0:02:26]}  Bc7 {[%clk 0:00:20]} 17. Nxd7 {[%clk 0:02:20]}  Nxd7 {[%clk 0:00:20]} 18. Bxc7 {[%clk 0:02:18]}  Rxc7 {[%clk 0:00:21]} 19. e4 {[%clk 0:02:19]}  dxe4 {[%clk 0:00:21]} 20. Rxe4 {[%clk 0:02:18]}  Nf6 {[%clk 0:00:22]} 21. Re5 {[%clk 0:02:18]}  Rd8 {[%clk 0:00:23]} 22. Rd1 {[%clk 0:00:17]}  Rcd7 {[%clk 0:00:21]} 23. Ree1 {[%clk 0:00:10]}  Rxd4 {[%clk 0:00:21]} 24. Rxd4 {[%clk 0:00:11]}  Rxd4 {[%clk 0:00:21]} 25. Bf3 {[%clk 0:00:10]}  Kf8 {[%clk 0:00:20]} 26. Kf1 {[%clk 0:00:08]}  Ke7 {[%clk 0:00:21]} 27. Re3 {[%clk 0:00:08]}  Rxb4 {[%clk 0:00:21]} 28. Re2 {[%clk 0:00:07]}  Nd5 {[%clk 0:00:20]} 29. Rc2 {[%clk 0:00:07]}  g6 {[%clk 0:00:20]} 30. g4 {[%clk 0:00:06]}  h6 {[%clk 0:00:19]} 31. Be2 {[%clk 0:00:06]}  Nf4 {[%clk 0:00:18]} 32. Bf3 {[%clk 0:00:05]}  Ra4 {[%clk 0:00:17]} 33. Kg1 {[%clk 0:00:03]}  g5 {[%clk 0:00:17]} 34. hxg5 {[%clk 0:00:03]}  hxg5 {[%clk 0:00:18]} 35. Kh2 {[%clk 0:00:04]}  Rd4 {[%clk 0:00:18]} 36. Bh1 {[%clk 0:00:03]}  e5 {[%clk 0:00:18]} 37. f3 {[%clk 0:00:03]}  Ne6 {[%clk 0:00:17]} 38. Kg3 {[%clk 0:00:03]}  Rd5 {[%clk 0:00:17]} 39. b4 {[%clk 0:00:03]}  Rd4 {[%clk 0:00:18]} 40. Rb2 {[%clk 0:00:03]}  Nf4 {[%clk 0:00:18]} 41. Bg2 {[%clk 0:00:03]}  Rd1 {[%clk 0:00:18]} 42. Bf1 {[%clk 0:00:00]}  Rxf1 {[%clk 0:00:18]} 0-1


[Site "https://www.chess.com"]